bitfinex-derivatives/quotes_ETHF0:USTF0_20250403
["timestamp","ask_amount","ask_price","bid_price","bid_amount"]
[1743712938551,2.58646,1789.1,1789.0,2.59601]
[1743712943659,1.1183,1789.4,1789.3,1.11824]
[1743712943858,4.6937,1789.5,1789.4,1.11822]
[1743712944062,1.1179,1790.0,1789.4,3.69565976]
[1743712944260,1.1179,1790.0,1789.9,1.11786]
[1743712944663,4.6937,1790.1,1789.8,4.82693]
[1743712944664,1.11791,1789.9,1789.8,4.82693]
[1743712945059,1.11791,1789.9,1789.8,3.709]
[1743712945255,1.11791,1789.9,1789.8,4.82697]
[1743712945660,1.11791,1789.9,1789.8,6.31817]
[1743712947668,2.59709,1790.0,1789.9,1.11791]
[1743712947867,2.59709,1790.0,1789.9,2.62271]
[1743712948269,2.59709,1790.0,1789.9,1.5048]
[1743712948570,2.59709,1790.0,1789.9,2.62271]
[1743712948770,2.59709,1790.0,1789.9,1.5048]
[1743712949271,1.11791,1789.9,1789.8,4.82692]
[1743712949567,2.60241,1789.9,1789.8,4.82692]
[1743712951965,1.11804,1789.7,1789.6,4.32586]
[1743712952171,1.4328,1789.8,1789.7,1.11804]
[1743712952370,1.11796,1789.9,1789.8,1.11793]
[1743712953069,2.55076,1789.9,1789.8,2.52433]
[1743712956369,2.55076,1789.9,1789.8,1.4064]
[1743712956675,2.55076,1789.9,1789.8,2.52437]
[1743712957581,2.55076,1789.9,1789.8,1.4064]
[1743712957876,1.11797,1789.8,1789.7,0.7015]
[1743712958075,2.62447,1789.8,1789.7,0.7015]
[1743712958264,2.62447,1789.8,1789.7,2.2106]
[1743712958578,2.62447,1789.8,1789.7,3.32859]
[1743712961879,1.11795,1789.9,1789.8,1.11797]
[1743712962073,1.11795,1789.9,1789.8,2.64007]
[1743712962591,2.49785,1789.9,1789.8,2.64007]
[1743712967283,2.49785,1789.9,1789.8,1.11797]
[1743712967586,1.8263,1790.0,1789.9,1.11791]
[1743712967789,1.8263,1790.0,1789.9,4.82391]
[1743712967986,3.2267,1790.0,1789.9,4.82391]
[1743712968385,3.2267,1790.0,1789.9,45.62391]
[1743712969288,3.2267,1790.0,1789.9,44.506]
[1743712971888,3.2267,1790.0,1789.9,45.62391]
[1743712972183,3.2267,1790.0,1789.9,44.506]
[1743712972988,3.2267,1790.0,1789.9,45.62391]
[1743712973286,3.2267,1790.0,1789.9,46.33377487]
[1743712975883,3.2267,1790.0,1789.9,45.21586487]
[1743712977592,3.2267,1790.0,1789.9,46.33377487]
[1743712981893,3.2267,1790.0,1789.9,45.21586487]
[1743712984287,3.2267,1790.0,1789.9,46.33377487]
[1743712985889,3.2267,1790.0,1789.9,46.82709844]
[1743712986801,2.1088,1790.0,1789.9,46.82709844]
[1743712986995,2.79407,1790.4,1790.0,1.11785]
[1743712987192,1.11776,1790.2,1790.1,1.11771]
[1743712987388,2.1643,1790.3,1790.2,1.11772]
[1743712987891,3.2078,1790.5,1790.4,1.1176]
[1743712988094,4.32539,1790.5,1790.4,1.1176]
[1743712988394,1.1176,1790.4,1790.3,3.21479434]
[1743712988589,1.4474,1790.4,1790.3,3.21479434]
[1743712988791,1.4474,1790.4,1790.3,4.41738734]
[1743712989184,1.4474,1790.4,1790.3,4.63388171]
[1743712990195,2.565,1790.4,1790.3,4.63388171]
[1743712992797,3.2078,1790.5,1790.4,1.1176]
[1743712992995,4.00533,1790.6,1790.5,1.11754]
[1743712993194,2.1739,1790.6,1790.5,4.82054]
[1743712993495,1.4207,1790.6,1790.5,5.52952737]
[1743712994001,1.87394,1790.9,1790.6,1.11748]
[1743712994199,2.62114,1790.9,1790.8,1.11735]
[1743712994392,4.32502,1791.1,1790.8,3.703]
[1743712994699,4.32502,1791.1,1791.0,1.11723]
[1743712994899,4.32502,1791.1,1791.0,41.91723]
[1743712995092,3.2078,1791.1,1791.0,41.91723]
[1743712995292,4.32496,1791.1,1791.0,43.34513]
[1743712995595,7.25506,1791.1,1791.0,42.2279]
[1743712995899,3.2078,1791.4,1791.0,47.9357]
[1743712996102,3.2078,1791.4,1791.2,1.11705]
[1743712996103,1.11709,1791.3,1791.2,1.11705]
[1743712996304,1.11709,1791.3,1791.2,2.54495]
[1743712996693,1.11704,1791.3,1791.2,2.54495]
[1743712997093,1.11704,1791.3,1791.2,3.30355]
[1743712998103,2.55454,1791.3,1791.2,3.30355]
[1743712998304,4.32483,1791.4,1791.3,1.11704]
[1743712998500,4.32483,1791.4,1791.3,2.50474]
[1743712998896,1.11704,1791.3,1791.2,40.8]
[1743712999306,2.55454,1791.3,1791.2,40.8]
[1743712999798,1.11729,1790.9,1790.8,4.32507]
[1743712999998,2.79276,1791.2,1790.9,1.11725]
[1743712999999,1.11727,1791.0,1790.9,1.11725]
[1743713000404,1.11727,1791.0,1790.9,2.50495]
[1743713000998,1.11727,1791.0,1790.9,1.3877]
[1743713001199,1.11729,1790.9,1790.8,8.0271]
[1743713001401,1.11729,1790.9,1790.8,9.526]
[1743713001699,1.11728,1791.0,1790.9,1.11725]
[1743713001906,2.58908,1791.0,1790.9,2.61615]
[1743713004405,1.1173,1790.9,1790.8,1.11731]
[1743713004706,2.6253,1790.9,1790.8,4.81831]
[1743713006608,2.6253,1790.9,1790.8,8.02611]
[1743713006806,2.6253,1790.9,1790.8,9.50971]
[1743713012212,2.6253,1790.9,1790.8,6.30191]
[1743713012414,2.6253,1790.9,1790.8,9.50971]
[1743713015213,4.26259,1791.2,1790.8,8.3924]
[1743713015415,1.11724,1791.1,1791.0,1.11719]
[1743713016517,2.50814,1791.1,1791.0,1.11719]
[1743713017016,2.50814,1791.1,1791.0,2.52969]
[1743713019516,2.58695,1791.2,1791.1,1.11716]
[1743713019716,4.02125,1791.2,1791.1,6.23066]
[1743713019917,4.02125,1791.2,1791.1,6.93813894]
[1743713020704,2.55145,1791.2,1791.1,6.93813894]
[1743713021211,2.55145,1791.2,1791.1,5.52463894]
[1743713023919,2.55145,1791.2,1791.1,6.01695246]
[1743713024219,2.55145,1791.2,1791.1,6.01699009]
[1743713025121,2.55145,1791.2,1791.1,4.40747894]
[1743713025817,2.55145,1791.2,1791.1,5.52463894]
[1743713026018,2.55145,1791.2,1791.1,4.40747894]
[1743713026321,2.55145,1791.2,1791.1,5.52463894]
[1743713027922,1.4343,1791.2,1791.1,5.52463894]
[1743713028224,2.5514,1791.2,1791.1,5.52463894]
[1743713028431,2.5514,1791.2,1791.1,6.99903894]
[1743713028923,2.5514,1791.2,1791.1,7.49161639]
[1743713029716,1.11708,1791.3,1791.2,1.11704]
[1743713029916,1.11708,1791.3,1791.2,4.04304]
[1743713030121,1.11708,1791.3,1791.2,4.75051894]
[1743713031134,1.11708,1791.3,1791.2,4.02751894]
[1743713031535,2.55678,1791.3,1791.2,4.02751894]
[1743713032231,1.4397,1791.3,1791.2,4.51973504]
[1743713032436,1.85912,1791.4,1791.3,1.11704]
[1743713032637,3.29882,1791.4,1791.3,1.11704]
[1743713032940,3.29882,1791.4,1791.3,1.82451894]
[1743713033934,2.1818,1791.4,1791.3,5.03231894]
[1743713034130,2.1818,1791.4,1791.3,6.40791894]
[1743713034330,1.4397,1791.4,1791.3,6.89982171]
[1743713035036,2.55668,1791.4,1791.3,6.89982171]
[1743713036537,1.4397,1791.4,1791.3,6.89982171]
[1743713037537,1.4397,1791.4,1791.3,6.19250065]
[1743713037938,1.4397,1791.4,1791.3,6.90084963]
[1743713038135,2.55668,1791.4,1791.3,6.90084963]
[1743713039438,1.4397,1791.4,1791.3,6.90084963]
[1743713040339,0.698,1791.5,1791.4,1.11698]
[1743713040541,2.1296,1791.5,1791.4,6.23608]
[1743713040741,3.24651,1791.5,1791.4,6.23608]
[1743713041041,3.24651,1791.5,1791.4,6.94442898]
[1743713041340,3.24651,1791.5,1791.4,5.52332898]
[1743713042544,1.11698,1791.4,1791.3,0.00838434]
[1743713042840,5.75638,1791.4,1791.3,0.00838434]
[1743713043039,8.25638,1791.4,1791.3,0.00838434]
[1743713045541,1.11723,1791.0,1790.9,3.2078]
[1743713045837,3.2078,1791.2,1790.9,3.2078]
[1743713046046,1.81495,1791.5,1791.4,1.11698]
[1743713046232,3.96375,1791.5,1791.4,1.11698]
[1743713046639,3.96375,1791.5,1791.4,41.91698]
[1743713046945,3.96375,1791.5,1791.4,42.40783371]
[1743713048144,3.96375,1791.5,1791.4,43.84283371]
[1743713048642,6.46375,1791.5,1791.3,0.00838434]
[1743713048842,2.56548,1791.4,1791.3,0.00838434]
[1743713049241,2.56548,1791.4,1791.3,40.80838434]
[1743713052047,2.56548,1791.4,1791.3,41.92542434]
[1743713052642,2.56548,1791.4,1791.3,45.13322434]
[1743713055555,1.11698,1791.4,1791.3,45.82942434]
[1743713056252,1.11698,1791.4,1791.3,47.02059379]
[1743713056554,2.52478,1791.4,1791.3,46.52963252]
[1743713056752,2.53908,1791.5,1791.4,1.11698]
[1743713056956,3.94688,1791.5,1791.4,6.27138]
[1743713057856,3.94688,1791.5,1791.4,5.1544]
[1743713058154,3.94688,1791.5,1791.4,3.697]
[1743713059955,1.11698,1791.4,1791.3,40.80838434]
[1743713060157,2.56658,1791.4,1791.3,41.92542434]
[1743713060355,2.56658,1791.4,1791.3,40.80838434]
[1743713060558,2.56658,1791.4,1791.3,41.50864339]
[1743713060756,2.56658,1791.4,1791.3,42.62568339]
[1743713064454,2.56658,1791.4,1791.3,41.50864339]
[1743713064758,2.56658,1791.4,1791.3,0.70864339]
[1743713064960,2.56658,1791.4,1791.3,0.00838434]
[1743713065156,5.06658,1791.4,1791.3,0.00838434]
[1743713071159,5.16424061,1791.4,1791.3,0.00838434]
[1743713074157,5.16423783,1791.4,1791.3,0.00838434]
[1743713076759,2.56658,1791.4,1791.3,0.00838434]
[1743713077364,2.56658,1791.4,1791.3,1.51048434]
[1743713078664,2.56658,1791.4,1791.3,0.00838434]
[1743713079862,5.16423969,1791.4,1791.3,0.00838434]
[1743713080465,8.86023969,1791.4,1791.3,0.00838434]
[1743713081668,8.86024232,1791.4,1791.3,0.00838434]
[1743713081868,8.95790464,1791.4,1791.3,0.00838434]
[1743713083163,8.86024232,1791.4,1791.3,0.00838434]
[1743713083371,12.16570403,1791.4,1791.3,0.00838434]
[1743713084669,12.16570499,1791.4,1791.3,0.00838434]
[1743713086172,12.06804232,1791.4,1791.3,0.00838434]
[1743713086379,12.16570359,1791.4,1791.3,0.00838434]
[1743713087775,12.16570317,1791.4,1791.3,0.00838434]
[1743713089774,5.96970317,1791.4,1791.3,0.00838434]
[1743713089980,5.87204232,1791.4,1791.3,0.00838434]
[1743713090176,5.87204232,1791.4,1791.3,1.51518434]
[1743713093673,8.37204232,1791.4,1791.3,0.00838434]
[1743713093882,8.46970166,1791.4,1791.3,0.00838434]
[1743713095269,5.96970215,1791.4,1791.3,0.00838434]
[1743713095579,5.87204232,1791.4,1791.3,0.00838434]
[1743713100479,4.42244232,1791.4,1791.3,0.00838434]
[1743713100784,4.42244232,1791.4,1791.3,1.45718434]
[1743713100982,4.42244232,1791.4,1791.3,2.94538434]
[1743713101281,4.42244232,1791.4,1791.3,4.06242434]
[1743713101585,3.30546232,1791.4,1791.3,6.56242434]
[1743713101787,0.09766232,1791.4,1791.3,7.75796016]
[1743713102378,0.09766232,1791.4,1791.3,7.26514597]
[1743713102575,1.21464232,1791.4,1791.3,7.26514597]
[1743713103383,1.21464232,1791.4,1791.3,2.89500597]
[1743713104090,1.21464232,1791.4,1791.3,2.19228434]
[1743713104888,1.21464232,1791.4,1791.3,3.30932434]
[1743713105185,1.21464232,1791.4,1791.3,2.19228434]
[1743713106582,1.21464232,1791.4,1791.3,3.30932434]
[1743713108189,1.21464232,1791.4,1791.3,2.19228434]
[1743713108992,1.21464232,1791.4,1791.3,3.30932434]
[1743713111297,1.21464232,1791.4,1791.3,4.01069662]
[1743713112887,0.09766232,1791.4,1791.3,6.51069662]
[1743713113089,0.09766232,1791.4,1791.3,4.01069662]
[1743713113694,1.21464232,1791.4,1791.3,4.01069662]
[1743713115892,0.09766232,1791.4,1791.3,4.01069662]
[1743713116093,0.09766232,1791.4,1791.3,6.51069662]
[1743713116688,1.12519444,1791.6,1791.5,1.11691]
[1743713116889,1.12519444,1791.6,1791.5,8.01871]
[1743713117084,1.12519444,1791.6,1791.5,9.40561]
[1743713117497,1.12519444,1791.6,1791.5,10.10698228]
[1743713117801,0.00830444,1791.6,1791.5,10.10698228]
[1743713118000,1.12515444,1791.6,1791.5,10.10698228]
[1743713118497,1.11679,1791.8,1791.7,1.11673]
[1743713119100,1.11679,1791.8,1791.7,2.50363]
[1743713123102,2.54119,1791.8,1791.7,2.50363]
[1743713123599,1.4244,1791.8,1791.7,2.50363]
[1743713124102,4.32451,1791.9,1791.7,5.00363]
[1743713124300,5.58222,1792.3,1792.2,1.11642]
[1743713124301,3.2078,1792.3,1792.2,1.11642]
[1743713124801,3.2078,1792.3,1792.2,41.91642]
[1743713124997,4.32412,1792.5,1792.2,43.6813]
[1743713125193,1.11632,1792.5,1792.4,1.11635]
[1743713125704,2.52132,1792.5,1792.4,1.11635]
[1743713126302,1.11635,1792.4,1792.3,2.49777]
[1743713126599,2.52135,1792.4,1792.3,2.49777]
[1743713128708,1.405,1792.4,1792.3,2.49777]
[1743713129300,2.52135,1792.4,1792.3,2.49777]
[1743713130198,1.405,1792.4,1792.3,2.49777]
[1743713130401,2.52135,1792.4,1792.3,2.49777]
[1743713132602,1.405,1792.4,1792.3,2.49777]
[1743713134908,2.52135,1792.4,1792.3,2.49777]
[1743713136606,1.405,1792.4,1792.3,2.49777]
[1743713136906,2.52135,1792.4,1792.3,2.49777]
[1743713137409,1.405,1792.4,1792.3,2.49777]
[1743713138109,2.52135,1792.4,1792.3,2.49777]
[1743713139406,2.52135,1792.4,1792.3,1.11637]
[1743713148408,1.405,1792.4,1792.3,1.11637]
[1743713148903,2.52135,1792.4,1792.3,1.11637]
[1743713149108,2.52135,1792.4,1792.3,2.59207]
[1743713151419,2.52135,1792.4,1792.3,3.29177394]
[1743713153017,1.405,1792.4,1792.3,3.29177394]
[1743713153316,2.52135,1792.4,1792.3,3.78282262]
[1743713153615,1.405,1792.4,1792.3,3.78282239]
[1743713154119,1.405,1792.4,1792.3,4.56979323]
[1743713155012,1.11633,1792.5,1792.4,1.11635]
[1743713155212,1.11633,1792.5,1792.4,6.67169845]
[1743713155518,2.52263,1792.5,1792.4,7.37140239]
[1743713157221,1.11601,1793.0,1792.5,2.79073]
[1743713157421,4.01471,1793.0,1792.9,1.11604]
[1743713157717,4.01471,1793.0,1792.9,5.29727693]
[1743713158018,4.01471,1793.0,1792.9,5.99698087]
[1743713158221,2.8987,1793.0,1792.9,5.99628032]
[1743713158415,4.01468,1793.0,1792.9,5.50574394]
[1743713160421,4.01468,1793.0,1792.9,4.38970394]
[1743713160915,4.01468,1793.0,1792.9,3.69]
[1743713161817,4.01468,1793.0,1792.9,4.80604]
[1743713162015,4.01468,1793.0,1792.9,3.69]
[1743713162218,4.01468,1793.0,1792.9,4.80604]
[1743713163720,3.2078,1793.3,1792.9,3.69]
[1743713163916,4.32364,1793.3,1793.2,1.11585]
[1743713164118,1.11584,1793.3,1793.2,1.11585]
[1743713164519,1.11576,1793.4,1793.3,1.11572]
[1743713164917,1.11572,1793.5,1793.4,1.11569]
[1743713165224,1.4352,1793.5,1793.4,45.12349]
[1743713165524,1.4352,1793.8,1793.7,1.11554]
[1743713165722,1.4352,1793.8,1793.7,8.01234]
[1743713165924,2.55068,1793.8,1793.7,8.01234]
[1743713166117,1.4352,1793.8,1793.7,8.01234]
[1743713166317,1.4485,1794.0,1793.9,1.11542]
[1743713166523,1.11548,1793.8,1793.7,6.8968]
[1743713166721,1.11547,1793.9,1793.8,1.11547]
[1743713167027,1.11548,1793.8,1793.7,8.0123]
[1743713167214,1.4352,1793.9,1793.7,6.8968]
[1743713167416,2.55064,1793.9,1793.8,1.11548]
[1743713167617,2.55064,1793.9,1793.8,2.61048]
[1743713168522,2.55064,1793.9,1793.8,1.495]
[1743713169118,1.11544,1793.9,1793.8,2.61048]
[1743713169321,2.1333,1794.3,1793.8,5.00961]
[1743713169520,2.51801,1794.1,1794.0,1.11531]
[1743713169716,2.51801,1794.1,1794.0,4.80231]
[1743713170421,2.51801,1794.1,1794.0,3.687]
[1743713171126,2.51801,1794.1,1794.0,4.80236]
[1743713171829,2.51801,1794.1,1794.0,3.687]
[1743713172629,2.51801,1794.1,1794.0,4.80236]
[1743713173828,1.4027,1794.1,1794.0,4.80236]
[1743713174016,1.4027,1794.1,1794.0,6.18266]
[1743713174731,1.11536,1794.0,1793.9,4.32317]
[1743713174917,2.54316,1794.0,1793.9,8.01017]
[1743713175229,1.4278,1794.0,1793.9,8.01017]
[1743713175429,2.51804,1794.1,1794.0,1.11536]
[1743713175724,2.518,1794.1,1794.0,2.63696]
[1743713176025,1.4027,1794.1,1794.0,2.63696]
[1743713176824,9.1758,1794.6,1794.0,1.5216]
[1743713177033,2.0986,1794.5,1794.4,1.11508]
[1743713177327,1.11511,1794.4,1794.3,4.32292]
[1743713177527,2.49981,1794.4,1794.3,4.32292]
[1743713178028,1.3847,1794.4,1794.3,4.32292]
[1743713178221,1.3847,1794.4,1794.3,5.79942]
[1743713179830,1.8046,1794.6,1794.5,1.11505]
[1743713180035,1.8046,1794.6,1794.5,4.32285]
[1743713180330,0.6896,1794.6,1794.5,8.00885]
[1743713180533,3.32668,1794.6,1794.5,8.00885]
[1743713180734,3.32668,1794.6,1794.5,48.80885]
[1743713180735,2.2117,1794.6,1794.5,48.80885]
[1743713180932,3.32668,1794.6,1794.5,48.80885]
[1743713181233,2.2117,1794.6,1794.5,48.80885]
[1743713181432,2.2117,1794.6,1794.5,50.27565]
[1743713181641,1.5221,1794.6,1794.5,50.27565]
[1743713182334,0.7503,1794.7,1794.6,1.11498]
[1743713182531,3.38732,1794.7,1794.6,2.58178]
[1743713185238,3.38732,1794.7,1794.3,0.7515]
[1743713185239,1.11511,1794.4,1794.3,3.2078]
[1743713185429,1.11511,1794.4,1794.1,4.33141074]
[1743713185430,1.11523,1794.2,1794.1,4.33141074]
[1743713186135,2.53213,1794.2,1794.1,4.33141074]
[1743713187735,2.53213,1794.2,1794.1,3.21616074]
[1743713188138,2.53213,1794.2,1794.1,4.33146074]
[1743713188334,2.53213,1794.2,1794.1,3.21616074]
[1743713188536,2.53213,1794.2,1794.1,4.33146074]
[1743713189132,2.53213,1794.2,1794.1,3.21616074]
[1743713189444,1.4169,1794.2,1794.1,4.33146074]
[1743713189628,1.4169,1794.2,1794.1,5.74706074]
[1743713190631,2.53213,1794.2,1794.1,5.74706074]
[1743713190834,2.53213,1794.2,1794.1,4.33146074]
[1743713191041,2.53213,1794.2,1794.1,45.13146074]
[1743713192438,1.4169,1794.2,1794.1,45.13146074]
[1743713192633,2.53213,1794.2,1794.1,45.13146074]
[1743713193038,2.53213,1794.2,1793.9,5.57685]
[1743713193039,1.11536,1794.0,1793.9,3.2078]
[1743713193244,1.11558,1793.7,1793.6,3.2078]
[1743713193743,1.11567,1793.5,1793.4,4.32349]
[1743713194140,1.11567,1793.5,1793.4,45.12349]
[1743713194339,2.56657,1793.5,1793.4,44.0078]
[1743713194541,2.56657,1793.5,1793.4,45.12353]
[1743713194746,2.56657,1793.5,1793.4,44.0078]
[1743713194940,2.56657,1793.5,1793.4,45.12353]
[1743713195845,1.11545,1793.9,1793.8,1.11543]
[1743713196053,2.50942,1793.9,1793.8,4.32323]
[1743713196347,2.50942,1793.9,1793.7,4.7995]
[1743713196348,1.11548,1793.8,1793.7,4.7995]
[1743713196546,2.50948,1793.8,1793.7,45.5995]
[1743713197447,1.394,1793.8,1793.7,45.5995]
[1743713197839,2.50948,1793.8,1793.7,45.5995]
[1743713198344,1.394,1793.8,1793.7,45.5995]
[1743713198745,1.394,1793.8,1793.7,47.0618]
[1743713198961,1.394,1793.8,1793.7,40.8]
[1743713199240,2.50948,1793.8,1793.7,40.8]
[1743713204746,1.11561,1793.6,1793.5,3.2078]
[1743713205154,1.11561,1793.6,1793.5,4.32347]
[1743713205349,3.26291,1793.6,1793.5,45.12347]
[1743713206648,1.11552,1793.8,1793.5,49.2102]
[1743713206951,3.95538,1793.9,1793.8,1.11544]
[1743713207856,1.4396,1793.9,1793.8,1.11544]
[1743713208055,2.55264,1794.1,1794.0,1.11536]
[1743713208252,4.07524,1794.1,1794.0,1.11536]
[1743713208755,1.5226,1794.1,1794.0,2.57406]
[1743713209842,0.00828208,1794.3,1794.2,1.11523]
[1743713210047,0.00828208,1794.3,1794.2,8.00803]
[1743713210457,1.12345208,1794.3,1794.2,9.46673]
[1743713211761,2.79622208,1794.3,1794.0,3.2078]
[1743713211952,1.1153,1794.1,1794.0,3.2078]
[1743713212358,2.4956,1794.1,1794.0,3.2078]
[1743713214862,2.4956,1794.1,1794.0,4.32316]
[1743713218459,2.4956,1794.1,1794.0,3.2078]
[1743713219167,2.4956,1794.1,1794.0,4.32316]
[1743713220664,2.4956,1794.1,1794.0,3.2078]
[1743713222468,1.11552,1793.8,1793.7,1.11551]
[1743713222769,1.11551,1793.8,1793.7,1.1155]
[1743713223361,1.11554,1793.7,1793.6,6.52284]
[1743713223567,1.11554,1793.7,1793.6,7.21941455]
[1743713224067,2.62964,1793.7,1793.6,7.21941455]
[1743713224566,1.5141,1793.7,1793.6,7.21941455]
[1743713224761,2.62964,1793.7,1793.6,7.21941455]
[1743713225266,1.1153,1794.2,1794.1,1.11527]
[1743713225463,4.0723,1794.2,1794.1,1.11527]
[1743713226266,4.0723,1794.2,1794.1,1.4613]
[1743713226591,1.11542,1793.9,1793.8,6.8918]
[1743713226904,1.11542,1793.9,1793.8,4.32328]
[1743713227088,1.11542,1793.9,1793.8,3.2078]
[1743713227488,1.84082,1793.9,1793.8,3.2078]
[1743713228403,1.84082,1793.9,1793.8,4.32328]
[1743713228988,1.84082,1793.9,1793.8,3.2078]
[1743713237896,1.11561,1793.6,1793.5,44.0078]
[1743713238194,1.11561,1793.6,1793.5,41.49809097]
[1743713238769,1.85581,1793.6,1793.5,40.8]
[1743713238972,1.11573,1793.4,1793.3,1.12414074]
[1743713239171,1.11573,1793.4,1793.3,0.70625501]
[1743713239373,1.11573,1793.4,1793.3,41.50625501]
[1743713239573,1.82773,1793.4,1793.3,41.50625501]
[1743713239766,1.82773,1793.4,1793.3,40.80836074]
[1743713240469,1.82773,1793.4,1793.3,41.92415074]
[1743713240772,1.4999,1793.5,1793.4,1.11573]
[1743713240971,0.712,1793.7,1793.6,1.11561]
[1743713241171,1.82754,1793.7,1793.6,4.32341]
[1743713241371,1.82754,1793.7,1793.6,1.11561]
[1743713241674,3.33964,1793.7,1793.6,41.91561]
[1743713241872,3.33964,1793.7,1793.6,42.2623]
[1743713242077,3.33964,1793.7,1793.6,40.8]
[1743713242475,3.33964,1793.7,1793.6,41.91561]
[1743713242777,3.33964,1793.7,1793.6,45.12341]
[1743713242971,3.33964,1793.7,1793.6,44.0078]
[1743713243371,3.33964,1793.7,1793.6,45.12341]
[1743713243983,3.33964,1793.7,1793.6,41.91561]
[1743713244972,2.62764,1793.7,1793.6,41.91561]
[1743713245875,3.32294,1793.7,1793.6,41.91561]
[1743713246582,3.32294,1793.7,1793.6,42.61294051]
[1743713247786,3.32294,1793.7,1793.6,41.49733051]
[1743713247982,1.11553,1793.8,1793.7,1.1155]
[1743713248384,1.11553,1793.8,1793.7,2.5431]
[1743713249581,1.11548,1793.8,1793.7,3.2955]
[1743713250590,1.11548,1793.8,1793.7,1.4276]
[1743713250788,1.11554,1793.7,1793.6,45.12339]
[1743713251090,1.81534,1793.7,1793.6,44.70549278]
[1743713251290,1.81534,1793.7,1793.6,45.82110278]
[1743713251701,1.81534,1793.7,1793.6,46.14309278]
[1743713252001,1.81534,1793.7,1793.6,47.25870278]
[1743713253294,1.11554,1793.7,1793.6,45.82110278]
[1743713253495,1.81534,1793.7,1793.6,45.82110278]
[1743713253992,1.81534,1793.7,1793.6,41.49769278]
[1743713254198,2.51994,1793.7,1793.6,41.49769278]
[1743713254495,1.11573,1793.4,1793.3,9.43781074]
[1743713254701,1.11573,1793.4,1793.3,9.92557399]
[1743713255104,1.11573,1793.4,1793.3,50.72557399]
[1743713255301,1.11573,1793.4,1793.3,50.23781074]
[1743713255504,1.11573,1793.4,1793.3,51.42399436]
[1743713255804,1.11573,1793.4,1793.3,51.4239105]
[1743713256102,1.11573,1793.4,1793.3,0.70673544]
[1743713256305,2.55963,1793.4,1793.3,0.70673544]
[1743713256600,2.55963,1793.4,1793.3,0.00836074]
[1743713257904,5.05963,1793.4,1793.3,0.00836074]
[1743713258499,6.55608386,1793.4,1793.3,0.00836074]
[1743713259007,6.55608573,1793.4,1793.3,0.00836074]
[1743713261313,6.55608379,1793.4,1793.3,0.00836074]
[1743713263507,6.55609008,1793.4,1793.3,0.00836074]
[1743713263806,6.55609008,1793.4,1792.8,4.6191]
[1743713263807,1.11604,1792.9,1792.8,4.6191]
[1743713264003,1.11604,1792.9,1792.8,3.2078]
[1743713264608,2.62274,1792.9,1792.8,3.2078]
[1743713265309,1.1161,1792.8,1792.7,0.00836074]
[1743713265505,2.6228,1792.8,1792.7,0.00836074]
[1743713265710,5.21968481,1792.8,1792.7,7.4e-07]
[1743713266008,5.92748731,1792.8,1792.7,7.4e-07]
[1743713266603,2.6228,1792.8,1792.7,7.4e-07]
[1743713271109,5.92748452,1792.8,1792.7,7.4e-07]
[1743713272113,5.8306,1792.8,1792.7,7.4e-07]
[1743713272315,5.92748712,1792.8,1792.7,7.4e-07]
[1743713273014,5.8306,1792.8,1792.7,7.4e-07]
[1743713273313,5.92748676,1792.8,1792.7,7.4e-07]
[1743713273712,5.8306,1792.8,1792.7,7.4e-07]
[1743713273910,5.92749004,1792.8,1792.7,7.4e-07]
[1743713274510,2.6228,1792.8,1792.7,7.4e-07]
[1743713279516,1.1161,1792.8,1792.7,1.11617074]
[1743713279714,1.1161,1792.8,1792.7,41.91613074]
[1743713280021,1.1161,1792.8,1792.7,43.36753074]
[1743713280421,1.1161,1792.8,1792.7,42.25140074]
[1743713282022,1.1161,1792.8,1792.7,43.36757074]
[1743713284524,1.11609,1792.9,1792.8,1.11608]
[1743713284825,1.11609,1792.9,1792.8,4.05178]
[1743713285321,1.11609,1792.9,1792.8,44.85178]
[1743713285510,1.11609,1792.9,1792.8,48.05958]
[1743713287624,1.11609,1792.9,1792.8,44.0078]
[1743713287927,1.1161,1792.8,1792.7,7.4e-07]
[1743713288218,1.21298761,1792.8,1792.7,7.4e-07]
[1743713288523,5.17258761,1792.8,1792.7,7.4e-07]
[1743713289519,5.17258761,1792.8,1792.2,40.8]
[1743713289520,1.11642,1792.3,1792.2,40.8]
[1743713290124,6.47642,1792.7,1792.3,1.11637]
[1743713290428,1.11635,1792.5,1792.4,2.0945]
[1743713292232,1.11635,1792.4,1792.3,0.00836074]
[1743713292535,1.11635,1792.4,1792.3,2.13576074]
[1743713292835,1.11635,1792.4,1792.3,2.83578442]
[1743713293335,4.6708,1792.8,1792.3,8.54358442]
[1743713293536,2.79834074,1793.0,1792.6,3.2078]
[1743713293835,1.1161,1792.8,1792.7,2.2376]
[1743713294628,1.1161,1792.8,1792.7,3.35377]
[1743713296431,1.1161,1792.8,1792.7,2.2376]
[1743713296926,1.1161,1792.8,1792.7,1.5028]
[1743713297129,1.11617,1792.7,1792.6,3.2078]
[1743713297431,2.49707,1792.7,1792.6,4.5961]
[1743713297635,2.49707,1792.7,1792.6,5.29617263]
[1743713301937,2.49707,1792.7,1792.6,6.41240263]
[1743713303631,2.49707,1792.7,1792.6,5.29617263]
[1743713303833,2.49707,1792.7,1792.6,6.41240263]
[1743713307136,1.11616,1792.8,1792.7,1.11617]
[1743713307343,1.11616,1792.8,1792.7,6.32317]
[1743713307542,2.56289074,1793.0,1792.9,1.11604]
[1743713307845,1.12439074,1793.0,1792.9,1.11604]
[1743713308237,1.12439074,1793.0,1792.9,2.63704]
[1743713309236,1.12439074,1793.0,1792.9,1.521]
[1743713309437,1.12439074,1793.0,1792.9,2.63704]
[1743713310839,1.12439074,1793.0,1792.9,3.3360905]
[1743713311843,1.12439074,1793.0,1792.9,2.63704]
[1743713313735,0.00836074,1793.0,1792.9,2.63704]
[1743713313939,1.1158,1793.4,1793.3,1.11575]
[1743713314239,2.6361,1793.4,1793.3,4.32355]